[Event "Titled Tuesday Blitz May 17 Late 2022"]
[White "Omariev, Maksim"]
[Black "Matinian, Nikita"]
[WhiteFideId "4193423"]
[BlackFideId "24129100"]
[WhiteElo "2519"]
[BlackElo "2422"]
[Result "0-1"]
[Round "10"]
[TimeControl "180+1"]
[Date "2022.05.17"]
[WhiteClock "0:00:01"]
[BlackClock "0:01:00"]

1. b3 {[%clk 0:03:00]}  Nf6 {[%clk 0:02:58]} 2. Bb2 {[%clk 0:03:01]}  g6 {[%clk 0:02:59]} 3. g4 {[%clk 0:03:00]}  h6 {[%clk 0:02:55]} 4. Bg2 {[%clk 0:02:58]}  d6 {[%clk 0:02:53]} 5. h3 {[%clk 0:02:57]}  Bg7 {[%clk 0:02:51]} 6. c4 {[%clk 0:02:57]}  O-O {[%clk 0:02:52]} 7. Nc3 {[%clk 0:02:55]}  e5 {[%clk 0:02:50]} 8. Qc2 {[%clk 0:02:46]}  Nc6 {[%clk 0:02:50]} 9. e3 {[%clk 0:02:44]}  Nb4 {[%clk 0:02:49]} 10. Qb1 {[%clk 0:02:43]}  Re8 {[%clk 0:02:44]} 11. a3 {[%clk 0:02:43]}  Nc6 {[%clk 0:02:44]} 12. Nge2 {[%clk 0:02:43]}  h5 {[%clk 0:02:31]} 13. gxh5 {[%clk 0:02:04]}  Nxh5 {[%clk 0:02:30]} 14. Qc2 {[%clk 0:02:00]}  Bf5 {[%clk 0:02:28]} 15. d3 {[%clk 0:01:59]}  Qg5 {[%clk 0:02:17]} 16. Bf3 {[%clk 0:01:50]}  Nd4 {[%clk 0:01:55]} 17. exd4 {[%clk 0:01:45]}  exd4 {[%clk 0:01:56]} 18. Nd5 {[%clk 0:01:03]}  c6 {[%clk 0:01:43]} 19. Nc7 {[%clk 0:01:01]}  Nf4 {[%clk 0:01:42]} 20. Bc1 {[%clk 0:00:42]}  Bxd3 {[%clk 0:01:12]} 21. Bxf4 {[%clk 0:00:30]}  Qf5 {[%clk 0:01:13]} 22. Qd2 {[%clk 0:00:22]}  Bxe2 {[%clk 0:01:13]} 23. Bxe2 {[%clk 0:00:21]}  d3 {[%clk 0:01:12]} 24. Nxe8 {[%clk 0:00:05]}  Rxe8 {[%clk 0:01:13]} 25. O-O-O {[%clk 0:00:03]}  Rxe2 {[%clk 0:01:08]} 26. Qxd3 {[%clk 0:00:02]}  Qxf4+ {[%clk 0:01:09]} 27. Rd2 {[%clk 0:00:01]}  Rxf2 {[%clk 0:01:00]} 0-1


[Site "https://www.chess.com"]

[Event "Titled Tuesday Blitz May 17 Late 2022"]
[White "Oparin, Grigoriy"]
[Black "Lamaze, Simon"]
[WhiteFideId "24125890"]
[BlackFideId "36069264"]
[WhiteElo "2665"]
[BlackElo "1999"]
[Result "1/2-1/2"]
[Round "10"]
[TimeControl "180+1"]
[Date "2022.05.17"]
[WhiteClock "0:00:19"]
[BlackClock "0:00:18"]

1. Nc3 {[%clk 0:03:00]}  d5 {[%clk 0:02:56]} 2. e4 {[%clk 0:03:00]}  d4 {[%clk 0:02:56]} 3. Nce2 {[%clk 0:03:00]}  e5 {[%clk 0:02:57]} 4. Ng3 {[%clk 0:03:00]}  Be6 {[%clk 0:02:57]} 5. c3 {[%clk 0:02:55]}  c5 {[%clk 0:02:48]} 6. Bb5+ {[%clk 0:02:54]}  Nc6 {[%clk 0:02:48]} 7. Nf3 {[%clk 0:02:51]}  Bd6 {[%clk 0:02:46]} 8. d3 {[%clk 0:02:47]}  Ne7 {[%clk 0:02:45]} 9. O-O {[%clk 0:02:45]}  h6 {[%clk 0:02:43]} 10. Nh4 {[%clk 0:02:44]}  Qd7 {[%clk 0:02:40]} 11. c4 {[%clk 0:02:26]}  a6 {[%clk 0:02:36]} 12. Bxc6 {[%clk 0:02:26]}  Nxc6 {[%clk 0:02:31]} 13. Nhf5 {[%clk 0:02:23]}  Bf8 {[%clk 0:02:28]} 14. f4 {[%clk 0:02:21]}  g6 {[%clk 0:02:27]} 15. fxe5 {[%clk 0:02:20]}  Nxe5 {[%clk 0:02:26]} 16. Bf4 {[%clk 0:02:20]}  Nxc4 {[%clk 0:02:10]} 17. dxc4 {[%clk 0:02:18]}  gxf5 {[%clk 0:02:10]} 18. exf5 {[%clk 0:02:19]}  Bxc4 {[%clk 0:02:10]} 19. Re1+ {[%clk 0:02:20]}  Kd8 {[%clk 0:02:08]} 20. Rc1 {[%clk 0:02:19]}  Bd5 {[%clk 0:02:07]} 21. Be5 {[%clk 0:02:11]}  Rg8 {[%clk 0:02:03]} 22. Bf6+ {[%clk 0:02:11]}  Kc8 {[%clk 0:01:59]} 23. Qxd4 {[%clk 0:02:12]}  Bc6 {[%clk 0:01:57]} 24. Qxd7+ {[%clk 0:01:47]}  Kxd7 {[%clk 0:01:56]} 25. Rcd1+ {[%clk 0:01:48]}  Kc7 {[%clk 0:01:55]} 26. Be7 {[%clk 0:01:48]}  h5 {[%clk 0:01:50]} 27. Rd2 {[%clk 0:01:43]}  h4 {[%clk 0:01:38]} 28. Nh5 {[%clk 0:01:43]}  Kb6 {[%clk 0:01:33]} 29. Nf6 {[%clk 0:01:40]}  Bxe7 {[%clk 0:01:30]} 30. Rxe7 {[%clk 0:01:38]}  Rg5 {[%clk 0:01:30]} 31. Nd7+ {[%clk 0:01:30]}  Kb5 {[%clk 0:01:19]} 32. a4+ {[%clk 0:01:23]}  Kb4 {[%clk 0:01:10]} 33. Ne5 {[%clk 0:01:23]}  Rxf5 {[%clk 0:01:00]} 34. Nxc6+ {[%clk 0:01:24]}  bxc6 {[%clk 0:01:01]} 35. Rb7+ {[%clk 0:01:24]}  Kc4 {[%clk 0:00:53]} 36. Rc2+ {[%clk 0:01:21]}  Kd3 {[%clk 0:00:53]} 37. Rc3+ {[%clk 0:01:21]}  Ke2 {[%clk 0:00:48]} 38. Re7+ {[%clk 0:01:20]}  Kd2 {[%clk 0:00:48]} 39. Rd7+ {[%clk 0:01:01]}  Ke2 {[%clk 0:00:48]} 40. Rc2+ {[%clk 0:01:01]}  Ke1 {[%clk 0:00:42]} 41. Rc1+ {[%clk 0:01:01]}  Ke2 {[%clk 0:00:41]} 42. Re7+ {[%clk 0:00:39]}  Kd2 {[%clk 0:00:41]} 43. Rc4 {[%clk 0:00:40]}  Rb8 {[%clk 0:00:33]} 44. Rd7+ {[%clk 0:00:30]}  Ke3 {[%clk 0:00:32]} 45. Rc2 {[%clk 0:00:27]}  Rb4 {[%clk 0:00:29]} 46. h3 {[%clk 0:00:26]}  Rxa4 {[%clk 0:00:27]} 47. Rc3+ {[%clk 0:00:27]}  Ke2 {[%clk 0:00:26]} 48. Kh2 {[%clk 0:00:25]}  Re4 {[%clk 0:00:23]} 49. Rc2+ {[%clk 0:00:21]}  Ke3 {[%clk 0:00:20]} 50. Rd1 {[%clk 0:00:20]}  Rd4 {[%clk 0:00:19]} 51. Re1+ {[%clk 0:00:16]}  Kf4 {[%clk 0:00:19]} 52. Rf1+ {[%clk 0:00:11]}  Ke5 {[%clk 0:00:18]} 53. Rxc5+ {[%clk 0:00:10]}  Rd5 {[%clk 0:00:18]} 54. Rxf5+ {[%clk 0:00:11]}  Kxf5 {[%clk 0:00:19]} 55. Rxc6 {[%clk 0:00:11]}  Rb5 {[%clk 0:00:19]} 56. Rc2 {[%clk 0:00:10]}  Rb4 {[%clk 0:00:19]} 57. Rf2+ {[%clk 0:00:10]}  Kg6 {[%clk 0:00:18]} 58. Kg1 {[%clk 0:00:10]}  f5 {[%clk 0:00:19]} 59. Kf1 {[%clk 0:00:11]}  Kg5 {[%clk 0:00:19]} 60. Ke1 {[%clk 0:00:11]}  Ra4 {[%clk 0:00:18]} 61. Rd2 {[%clk 0:00:11]}  Ra1+ {[%clk 0:00:18]} 62. Kf2 {[%clk 0:00:11]}  a5 {[%clk 0:00:18]} 63. Rd8 {[%clk 0:00:09]}  Ra2 {[%clk 0:00:17]} 64. Rb8 {[%clk 0:00:09]}  a4 {[%clk 0:00:18]} 65. Kg1 {[%clk 0:00:09]}  a3 {[%clk 0:00:18]} 66. bxa3 {[%clk 0:00:10]}  Rxa3 {[%clk 0:00:18]} 67. Rg8+ {[%clk 0:00:10]}  Kf6 {[%clk 0:00:18]} 68. Rh8 {[%clk 0:00:10]}  Kg5 {[%clk 0:00:19]} 69. Rh7 {[%clk 0:00:10]}  Ra2 {[%clk 0:00:18]} 70. Re7 {[%clk 0:00:10]}  Kf6 {[%clk 0:00:18]} 71. Re3 {[%clk 0:00:10]}  Kg5 {[%clk 0:00:18]} 72. Kf1 {[%clk 0:00:11]}  Rb2 {[%clk 0:00:18]} 73. Re2 {[%clk 0:00:11]}  Rb1+ {[%clk 0:00:19]} 74. Kf2 {[%clk 0:00:11]}  Rb3 {[%clk 0:00:19]} 75. Re3 {[%clk 0:00:11]}  Rb2+ {[%clk 0:00:19]} 76. Kf3 {[%clk 0:00:12]}  Rb1 {[%clk 0:00:19]} 77. Rd3 {[%clk 0:00:12]}  Rf1+ {[%clk 0:00:19]} 78. Ke2 {[%clk 0:00:13]}  Ra1 {[%clk 0:00:20]} 79. Rd8 {[%clk 0:00:13]}  Ra2+ {[%clk 0:00:20]} 80. Kf3 {[%clk 0:00:12]}  Ra3+ {[%clk 0:00:20]} 81. Kf2 {[%clk 0:00:13]}  Ra2+ {[%clk 0:00:20]} 82. Kf1 {[%clk 0:00:13]}  Kf4 {[%clk 0:00:19]} 83. Rg8 {[%clk 0:00:12]}  Ke3 {[%clk 0:00:18]} 84. Kg1 {[%clk 0:00:13]}  Kf4 {[%clk 0:00:18]} 85. Kh2 {[%clk 0:00:13]}  Ra6 {[%clk 0:00:17]} 86. Rg7 {[%clk 0:00:13]}  Rb6 {[%clk 0:00:16]} 87. Rg8 {[%clk 0:00:13]}  Rb7 {[%clk 0:00:17]} 88. Rg6 {[%clk 0:00:13]}  Rb5 {[%clk 0:00:16]} 89. Rg8 {[%clk 0:00:12]}  Rb6 {[%clk 0:00:16]} 90. Ra8 {[%clk 0:00:12]}  Kg5 {[%clk 0:00:16]} 91. Ra4 {[%clk 0:00:13]}  Re6 {[%clk 0:00:15]} 92. Ra2 {[%clk 0:00:13]}  Re4 {[%clk 0:00:15]} 93. Kg1 {[%clk 0:00:13]}  Rb4 {[%clk 0:00:16]} 94. Kf2 {[%clk 0:00:13]}  Kf4 {[%clk 0:00:16]} 95. Rc2 {[%clk 0:00:12]}  Rd4 {[%clk 0:00:16]} 96. Ke2 {[%clk 0:00:13]}  Re4+ {[%clk 0:00:16]} 97. Kf2 {[%clk 0:00:13]}  Rd4 {[%clk 0:00:16]} 98. Rc3 {[%clk 0:00:13]}  Rd2+ {[%clk 0:00:16]} 99. Kf1 {[%clk 0:00:13]}  Rd4 {[%clk 0:00:17]} 100. Ke2 {[%clk 0:00:13]}  Re4+ {[%clk 0:00:17]} 101. Kf2 {[%clk 0:00:14]}  Rd4 {[%clk 0:00:17]} 102. Rf3+ {[%clk 0:00:14]}  Kg5 {[%clk 0:00:18]} 103. Re3 {[%clk 0:00:14]}  Kf4 {[%clk 0:00:18]} 104. Re2 {[%clk 0:00:15]}  Rd3 {[%clk 0:00:17]} 105. Re8 {[%clk 0:00:14]}  Rd2+ {[%clk 0:00:17]} 106. Kg1 {[%clk 0:00:15]}  Rd4 {[%clk 0:00:16]} 107. Kh2 {[%clk 0:00:15]}  Kg5 {[%clk 0:00:16]} 108. Rg8+ {[%clk 0:00:15]}  Kf6 {[%clk 0:00:16]} 109. Rh8 {[%clk 0:00:16]}  Kg5 {[%clk 0:00:17]} 110. Rg8+ {[%clk 0:00:17]}  Kf6 {[%clk 0:00:17]} 111. Kg1 {[%clk 0:00:17]}  Rd1+ {[%clk 0:00:16]} 112. Kf2 {[%clk 0:00:17]}  Rd4 {[%clk 0:00:17]} 113. Ke3 {[%clk 0:00:18]}  Ra4 {[%clk 0:00:17]} 114. Kf3 {[%clk 0:00:17]}  Ra3+ {[%clk 0:00:17]} 115. Ke2 {[%clk 0:00:18]}  Ra2+ {[%clk 0:00:18]} 116. Kd3 {[%clk 0:00:19]}  Ra3+ {[%clk 0:00:18]} 1/2-1/2


[Site "https://www.chess.com"]

[Event "Titled Tuesday Blitz May 17 Late 2022"]
[White "Pap, Gyula"]
[Black "Gabrielian, Artur"]
[WhiteFideId "725323"]
[BlackFideId "4131002"]
[WhiteElo "2553"]
[BlackElo "2440"]
[Result "1-0"]
[Round "10"]
[TimeControl "180+1"]
[Date "2022.05.17"]
[WhiteClock "0:01:41"]
[BlackClock "0:01:09"]

1. d4 {[%clk 0:03:00]}  Nf6 {[%clk 0:02:59]} 2. c4 {[%clk 0:03:01]}  c5 {[%clk 0:02:59]} 3. d5 {[%clk 0:03:01]}  e6 {[%clk 0:03:00]} 4. Nc3 {[%clk 0:03:01]}  exd5 {[%clk 0:03:00]} 5. cxd5 {[%clk 0:03:02]}  d6 {[%clk 0:03:01]} 6. Nf3 {[%clk 0:03:01]}  g6 {[%clk 0:03:01]} 7. Bf4 {[%clk 0:03:01]}  Bg7 {[%clk 0:03:01]} 8. Qa4+ {[%clk 0:03:02]}  Bd7 {[%clk 0:03:01]} 9. Qb3 {[%clk 0:03:01]}  b5 {[%clk 0:03:02]} 10. Nxb5 {[%clk 0:03:01]}  Bxb5 {[%clk 0:03:01]} 11. Qxb5+ {[%clk 0:03:00]}  Nbd7 {[%clk 0:03:02]} 12. Bxd6 {[%clk 0:02:45]}  Ne4 {[%clk 0:03:02]} 13. Be5 {[%clk 0:02:34]}  O-O {[%clk 0:03:02]} 14. Bxg7 {[%clk 0:02:23]}  Kxg7 {[%clk 0:03:03]} 15. Qa4 {[%clk 0:02:17]}  Kg8 {[%clk 0:03:03]} 16. Qxe4 {[%clk 0:02:10]}  Kg7 {[%clk 0:03:04]} 17. Qc2 {[%clk 0:02:06]}  Rb8 {[%clk 0:03:05]} 18. e4 {[%clk 0:02:02]}  Nf6 {[%clk 0:02:20]} 19. Be2 {[%clk 0:02:00]}  Qa5+ {[%clk 0:02:08]} 20. Nd2 {[%clk 0:01:59]}  Qb4 {[%clk 0:01:31]} 21. O-O {[%clk 0:01:55]}  Rfe8 {[%clk 0:01:28]} 22. b3 {[%clk 0:01:51]}  Nxd5 {[%clk 0:01:16]} 23. exd5 {[%clk 0:01:43]}  Rxe2 {[%clk 0:01:16]} 24. Rad1 {[%clk 0:01:43]}  Rbe8 {[%clk 0:01:09]} 25. Qd3 {[%clk 0:01:41]} 1-0


[Site "https://www.chess.com"]

[Event "Titled Tuesday Blitz May 17 Late 2022"]
[White "Petrovic, Aleksa"]
[Black "Leitao, Rafael"]
[WhiteFideId "967629"]
[BlackFideId "2101246"]
[WhiteElo "2144"]
[BlackElo "2609"]
[Result "0-1"]
[Round "10"]
[TimeControl "180+1"]
[Date "2022.05.17"]
[WhiteClock "0:00:11"]
[BlackClock "0:00:11"]

1. d4 {[%clk 0:03:00]}  Nf6 {[%clk 0:02:59]} 2. c4 {[%clk 0:03:01]}  e6 {[%clk 0:02:59]} 3. Nf3 {[%clk 0:03:01]}  d5 {[%clk 0:02:58]} 4. Nc3 {[%clk 0:03:00]}  Bb4 {[%clk 0:02:58]} 5. cxd5 {[%clk 0:02:55]}  exd5 {[%clk 0:02:58]} 6. Bg5 {[%clk 0:02:54]}  h6 {[%clk 0:02:56]} 7. Qa4+ {[%clk 0:02:49]}  Nc6 {[%clk 0:02:55]} 8. Bxf6 {[%clk 0:02:48]}  Qxf6 {[%clk 0:02:55]} 9. Ne5 {[%clk 0:02:39]}  O-O {[%clk 0:02:33]} 10. Nxc6 {[%clk 0:02:38]}  Bxc3+ {[%clk 0:02:32]} 11. bxc3 {[%clk 0:02:39]}  bxc6 {[%clk 0:02:33]} 12. e3 {[%clk 0:02:31]}  c5 {[%clk 0:02:24]} 13. Be2 {[%clk 0:02:25]}  cxd4 {[%clk 0:02:23]} 14. Qxd4 {[%clk 0:02:19]}  Qd6 {[%clk 0:02:09]} 15. Bf3 {[%clk 0:02:12]}  Be6 {[%clk 0:02:05]} 16. O-O {[%clk 0:02:05]}  c5 {[%clk 0:02:04]} 17. Qd3 {[%clk 0:02:01]}  Rfd8 {[%clk 0:01:57]} 18. Rfd1 {[%clk 0:02:01]}  Qc7 {[%clk 0:01:40]} 19. Rd2 {[%clk 0:01:54]}  Rab8 {[%clk 0:01:33]} 20. Rad1 {[%clk 0:01:52]}  Qa5 {[%clk 0:01:15]} 21. Qc2 {[%clk 0:01:41]}  c4 {[%clk 0:01:09]} 22. h3 {[%clk 0:01:27]}  g6 {[%clk 0:01:01]} 23. Rd4 {[%clk 0:01:24]}  Bf5 {[%clk 0:00:51]} 24. Qd2 {[%clk 0:00:59]}  Bd3 {[%clk 0:00:51]} 25. e4 {[%clk 0:00:55]}  dxe4 {[%clk 0:00:48]} 26. Rxd8+ {[%clk 0:00:46]}  Rxd8 {[%clk 0:00:45]} 27. Bxe4 {[%clk 0:00:46]}  Kg7 {[%clk 0:00:41]} 28. Bxd3 {[%clk 0:00:31]}  Rxd3 {[%clk 0:00:39]} 29. Qc2 {[%clk 0:00:27]}  Rxd1+ {[%clk 0:00:34]} 30. Qxd1 {[%clk 0:00:28]}  Qxc3 {[%clk 0:00:33]} 31. Qd5 {[%clk 0:00:27]}  Qc1+ {[%clk 0:00:22]} 32. Kh2 {[%clk 0:00:27]}  Qf4+ {[%clk 0:00:23]} 33. Kg1 {[%clk 0:00:26]}  c3 {[%clk 0:00:22]} 34. Qc5 {[%clk 0:00:26]}  Qd2 {[%clk 0:00:17]} 35. Qe5+ {[%clk 0:00:25]}  Kh7 {[%clk 0:00:17]} 36. Qf6 {[%clk 0:00:24]}  Kg8 {[%clk 0:00:10]} 37. h4 {[%clk 0:00:11]}  c2 {[%clk 0:00:10]} 38. h5 {[%clk 0:00:11]}  c1=Q+ {[%clk 0:00:11]} 39. Kh2 {[%clk 0:00:11]}  Qf4+ {[%clk 0:00:11]} 0-1


[Site "https://www.chess.com"]

[Event "Titled Tuesday Blitz May 17 Late 2022"]
[White "Rozovsky, Daniel"]
[Black "Ivanisevic, Ivan"]
[WhiteFideId "2020904"]
[BlackFideId "912417"]
[WhiteElo "2645"]
[BlackElo "2495"]
[Result "0-1"]
[Round "10"]
[TimeControl "180+1"]
[Date "2022.05.17"]
[WhiteClock "0:00:03"]
[BlackClock "0:01:16"]

1. e4 {[%clk 0:03:00]}  c5 {[%clk 0:03:00]} 2. Nf3 {[%clk 0:03:00]}  d6 {[%clk 0:03:01]} 3. d4 {[%clk 0:03:00]}  cxd4 {[%clk 0:03:02]} 4. Nxd4 {[%clk 0:03:00]}  Nf6 {[%clk 0:03:02]} 5. Nc3 {[%clk 0:03:01]}  Nc6 {[%clk 0:03:01]} 6. Bc4 {[%clk 0:03:01]}  Bd7 {[%clk 0:03:00]} 7. Bb3 {[%clk 0:03:01]}  g6 {[%clk 0:02:59]} 8. f3 {[%clk 0:03:01]}  Nxd4 {[%clk 0:02:59]} 9. Qxd4 {[%clk 0:03:01]}  Bg7 {[%clk 0:02:59]} 10. Be3 {[%clk 0:03:00]}  O-O {[%clk 0:02:57]} 11. Qd2 {[%clk 0:03:00]}  b5 {[%clk 0:02:57]} 12. Bh6 {[%clk 0:02:49]}  a5 {[%clk 0:02:56]} 13. a4 {[%clk 0:02:46]}  bxa4 {[%clk 0:02:52]} 14. Bxa4 {[%clk 0:02:43]}  Be6 {[%clk 0:02:44]} 15. h4 {[%clk 0:02:37]}  Qb6 {[%clk 0:02:41]} 16. Bxg7 {[%clk 0:02:30]}  Kxg7 {[%clk 0:02:40]} 17. Bb5 {[%clk 0:02:23]}  h5 {[%clk 0:02:34]} 18. g4 {[%clk 0:02:07]}  hxg4 {[%clk 0:02:31]} 19. h5 {[%clk 0:02:07]}  Rh8 {[%clk 0:02:30]} 20. O-O-O {[%clk 0:01:59]}  Rxh5 {[%clk 0:02:19]} 21. Rxh5 {[%clk 0:01:56]}  Nxh5 {[%clk 0:02:20]} 22. fxg4 {[%clk 0:01:52]}  Bxg4 {[%clk 0:02:18]} 23. Rf1 {[%clk 0:01:47]}  Rc8 {[%clk 0:02:05]} 24. b3 {[%clk 0:01:23]}  Be6 {[%clk 0:02:03]} 25. Be2 {[%clk 0:00:49]}  Qb4 {[%clk 0:01:59]} 26. Kb2 {[%clk 0:00:39]}  a4 {[%clk 0:01:54]} 27. Rf3 {[%clk 0:00:32]}  axb3 {[%clk 0:01:51]} 28. Rd3 {[%clk 0:00:17]}  bxc2+ {[%clk 0:01:49]} 29. Kc1 {[%clk 0:00:16]}  Qa3+ {[%clk 0:01:43]} 30. Kxc2 {[%clk 0:00:15]}  Bb3+ {[%clk 0:01:39]} 31. Kb1 {[%clk 0:00:16]}  Rb8 {[%clk 0:01:38]} 32. Rh3 {[%clk 0:00:05]}  Be6+ {[%clk 0:01:25]} 33. Nb5 {[%clk 0:00:05]}  Bxh3 {[%clk 0:01:21]} 34. Qd4+ {[%clk 0:00:05]}  e5 {[%clk 0:01:20]} 35. Qd5 {[%clk 0:00:04]}  Be6 {[%clk 0:01:16]} 36. Kc2 {[%clk 0:00:03]} 0-1


[Site "https://www.chess.com"]

[Event "Titled Tuesday Blitz May 17 Late 2022"]
[White "Sadhwani, Raunak"]
[Black "Martinez Alcantara, Jose Eduardo"]
[WhiteFideId "35093487"]
[BlackFideId "3805662"]
[WhiteElo "2616"]
[BlackElo "2690"]
[Result "1/2-1/2"]
[Round "10"]
[TimeControl "180+1"]
[Date "2022.05.17"]
[WhiteClock "0:00:06"]
[BlackClock "0:00:04"]

1. e4 {[%clk 0:03:00]}  e5 {[%clk 0:03:00]} 2. Nf3 {[%clk 0:03:00]}  Nc6 {[%clk 0:03:01]} 3. Bc4 {[%clk 0:03:01]}  Bc5 {[%clk 0:03:01]} 4. c3 {[%clk 0:03:00]}  Nf6 {[%clk 0:03:01]} 5. d4 {[%clk 0:03:00]}  exd4 {[%clk 0:03:01]} 6. e5 {[%clk 0:03:01]}  d5 {[%clk 0:03:00]} 7. Bb5 {[%clk 0:03:01]}  Ne4 {[%clk 0:03:01]} 8. cxd4 {[%clk 0:03:01]}  Bb6 {[%clk 0:03:02]} 9. Nc3 {[%clk 0:03:01]}  O-O {[%clk 0:02:52]} 10. Be3 {[%clk 0:03:01]}  Bg4 {[%clk 0:02:52]} 11. h3 {[%clk 0:02:59]}  Bh5 {[%clk 0:02:52]} 12. Qc2 {[%clk 0:02:46]}  Bg6 {[%clk 0:02:46]} 13. Qb3 {[%clk 0:02:46]}  Ne7 {[%clk 0:02:41]} 14. O-O {[%clk 0:02:44]}  c5 {[%clk 0:02:19]} 15. dxc5 {[%clk 0:02:29]}  Nxc5 {[%clk 0:02:16]} 16. Qb4 {[%clk 0:02:17]}  Ne6 {[%clk 0:01:57]} 17. Bxb6 {[%clk 0:02:13]}  axb6 {[%clk 0:01:58]} 18. Rfd1 {[%clk 0:02:01]}  Nc6 {[%clk 0:01:58]} 19. Qd6 {[%clk 0:01:16]}  d4 {[%clk 0:01:56]} 20. Nd5 {[%clk 0:01:17]}  Be4 {[%clk 0:01:48]} 21. Bxc6 {[%clk 0:01:10]}  bxc6 {[%clk 0:01:43]} 22. Ne7+ {[%clk 0:01:09]}  Kh8 {[%clk 0:01:42]} 23. Nxd4 {[%clk 0:01:08]}  Qxd6 {[%clk 0:00:41]} 24. exd6 {[%clk 0:01:08]}  c5 {[%clk 0:00:41]} 25. Nxe6 {[%clk 0:00:55]}  fxe6 {[%clk 0:00:42]} 26. f3 {[%clk 0:00:53]}  Bb7 {[%clk 0:00:38]} 27. b4 {[%clk 0:00:45]}  cxb4 {[%clk 0:00:35]} 28. Rab1 {[%clk 0:00:26]}  Ra4 {[%clk 0:00:35]} 29. Rbc1 {[%clk 0:00:12]}  Rxa2 {[%clk 0:00:12]} 30. d7 {[%clk 0:00:10]}  Raa8 {[%clk 0:00:09]} 31. Rc7 {[%clk 0:00:10]}  Bd5 {[%clk 0:00:09]} 32. Nxd5 {[%clk 0:00:04]}  exd5 {[%clk 0:00:09]} 33. Rxd5 {[%clk 0:00:05]}  Kg8 {[%clk 0:00:05]} 34. Rb5 {[%clk 0:00:05]}  Rab8 {[%clk 0:00:04]} 35. Rxb4 {[%clk 0:00:05]}  Rfd8 {[%clk 0:00:04]} 36. Rb5 {[%clk 0:00:04]}  Kf7 {[%clk 0:00:04]} 37. Rc6 {[%clk 0:00:04]}  Rxd7 {[%clk 0:00:04]} 38. Rcxb6 {[%clk 0:00:04]}  Rxb6 {[%clk 0:00:05]} 39. Rxb6 {[%clk 0:00:05]}  h5 {[%clk 0:00:03]} 40. h4 {[%clk 0:00:05]}  g6 {[%clk 0:00:04]} 41. Kh2 {[%clk 0:00:06]}  Kg7 {[%clk 0:00:04]} 42. Kg3 {[%clk 0:00:06]}  Rd4 {[%clk 0:00:05]} 43. Rb1 {[%clk 0:00:07]}  Ra4 {[%clk 0:00:05]} 44. Re1 {[%clk 0:00:07]}  Rb4 {[%clk 0:00:06]} 45. Re4 {[%clk 0:00:08]}  Rb5 {[%clk 0:00:07]} 46. Kf4 {[%clk 0:00:08]}  Rf5+ {[%clk 0:00:07]} 47. Ke3 {[%clk 0:00:08]}  Ra5 {[%clk 0:00:08]} 48. Rd4 {[%clk 0:00:09]}  Ra2 {[%clk 0:00:07]} 49. g3 {[%clk 0:00:09]}  Ra5 {[%clk 0:00:07]} 50. Ke4 {[%clk 0:00:09]}  Kf6 {[%clk 0:00:06]} 51. Rd6+ {[%clk 0:00:09]}  Kf7 {[%clk 0:00:07]} 52. Rd5 {[%clk 0:00:09]}  Ra3 {[%clk 0:00:06]} 53. Kf4 {[%clk 0:00:08]}  Kg7 {[%clk 0:00:03]} 54. Rb5 {[%clk 0:00:06]}  Rc3 {[%clk 0:00:02]} 55. Re5 {[%clk 0:00:06]}  Kf6 {[%clk 0:00:02]} 56. Rd5 {[%clk 0:00:06]}  Rc4+ {[%clk 0:00:02]} 57. Ke3 {[%clk 0:00:06]}  Ra4 {[%clk 0:00:03]} 58. Rd6+ {[%clk 0:00:07]}  Kf7 {[%clk 0:00:04]} 59. Rd4 {[%clk 0:00:07]}  Ra3+ {[%clk 0:00:04]} 60. Kf4 {[%clk 0:00:07]}  Ra5 {[%clk 0:00:05]} 61. Re4 {[%clk 0:00:08]}  Kf6 {[%clk 0:00:05]} 62. Rc4 {[%clk 0:00:07]}  Rf5+ {[%clk 0:00:05]} 63. Ke3 {[%clk 0:00:07]}  Re5+ {[%clk 0:00:06]} 64. Re4 {[%clk 0:00:08]}  Ra5 {[%clk 0:00:07]} 65. Rf4+ {[%clk 0:00:08]}  Kg7 {[%clk 0:00:05]} 66. Rd4 {[%clk 0:00:08]}  Ra3+ {[%clk 0:00:05]} 67. Ke4 {[%clk 0:00:08]}  Ra5 {[%clk 0:00:06]} 68. Rd5 {[%clk 0:00:09]}  Ra3 {[%clk 0:00:06]} 69. Rd6 {[%clk 0:00:08]}  Ra5 {[%clk 0:00:05]} 70. Kf4 {[%clk 0:00:08]}  Rf5+ {[%clk 0:00:05]} 71. Ke3 {[%clk 0:00:08]}  Rb5 {[%clk 0:00:06]} 72. Ke4 {[%clk 0:00:09]}  Ra5 {[%clk 0:00:06]} 73. Rd5 {[%clk 0:00:08]}  Ra3 {[%clk 0:00:06]} 74. Rd4 {[%clk 0:00:07]}  Ra5 {[%clk 0:00:06]} 75. g4 {[%clk 0:00:07]}  hxg4 {[%clk 0:00:03]} 76. fxg4 {[%clk 0:00:08]}  Ra6 {[%clk 0:00:02]} 77. Kf4 {[%clk 0:00:08]}  Ra7 {[%clk 0:00:02]} 78. Rd5 {[%clk 0:00:08]}  Rb7 {[%clk 0:00:02]} 79. Kg5 {[%clk 0:00:08]}  Ra7 {[%clk 0:00:03]} 80. Re5 {[%clk 0:00:09]}  Rb7 {[%clk 0:00:03]} 81. Ra5 {[%clk 0:00:09]}  Rc7 {[%clk 0:00:04]} 82. Kf4 {[%clk 0:00:09]}  Rf7+ {[%clk 0:00:04]} 83. Ke4 {[%clk 0:00:09]}  Rb7 {[%clk 0:00:05]} 84. Rd5 {[%clk 0:00:09]}  Rb4+ {[%clk 0:00:05]} 85. Rd4 {[%clk 0:00:09]}  Rb7 {[%clk 0:00:06]} 86. g5 {[%clk 0:00:10]}  Re7+ {[%clk 0:00:05]} 87. Kd5 {[%clk 0:00:10]}  Re1 {[%clk 0:00:05]} 88. Re4 {[%clk 0:00:11]}  Rh1 {[%clk 0:00:03]} 89. Kd6 {[%clk 0:00:10]}  Kf7 {[%clk 0:00:03]} 90. Re7+ {[%clk 0:00:10]}  Kf8 {[%clk 0:00:02]} 91. Re4 {[%clk 0:00:10]}  Kf7 {[%clk 0:00:03]} 92. Rf4+ {[%clk 0:00:10]}  Kg7 {[%clk 0:00:03]} 93. Ra4 {[%clk 0:00:10]}  Rd1+ {[%clk 0:00:03]} 94. Ke5 {[%clk 0:00:11]}  Re1+ {[%clk 0:00:04]} 95. Re4 {[%clk 0:00:11]}  Rh1 {[%clk 0:00:04]} 96. Ke6 {[%clk 0:00:12]}  Ra1 {[%clk 0:00:04]} 97. Rd4 {[%clk 0:00:12]}  Re1+ {[%clk 0:00:04]} 98. Kd7 {[%clk 0:00:12]}  Rh1 {[%clk 0:00:04]} 99. Rc4 {[%clk 0:00:12]}  Rd1+ {[%clk 0:00:04]} 100. Ke6 {[%clk 0:00:13]}  Re1+ {[%clk 0:00:04]} 101. Kd5 {[%clk 0:00:14]}  Rd1+ {[%clk 0:00:04]} 102. Rd4 {[%clk 0:00:15]}  Rh1 {[%clk 0:00:05]} 103. Kd6 {[%clk 0:00:15]}  Kf7 {[%clk 0:00:05]} 104. Kd7 {[%clk 0:00:15]}  Rh2 {[%clk 0:00:05]} 105. Rf4+ {[%clk 0:00:15]}  Kg7 {[%clk 0:00:05]} 106. Re4 {[%clk 0:00:15]}  Rd2+ {[%clk 0:00:05]} 107. Ke8 {[%clk 0:00:14]}  Rh2 {[%clk 0:00:04]} 108. Re7+ {[%clk 0:00:14]}  Kg8 {[%clk 0:00:05]} 109. Re6 {[%clk 0:00:15]}  Kg7 {[%clk 0:00:05]} 110. Re4 {[%clk 0:00:15]}  Rd2 {[%clk 0:00:05]} 111. Re7+ {[%clk 0:00:13]}  Kg8 {[%clk 0:00:05]} 112. Rd7 {[%clk 0:00:12]}  Re2+ {[%clk 0:00:04]} 113. Kd8 {[%clk 0:00:13]}  Re4 {[%clk 0:00:04]} 114. Rd6 {[%clk 0:00:09]}  Kg7 {[%clk 0:00:04]} 115. Rd7+ {[%clk 0:00:09]}  Kg8 {[%clk 0:00:05]} 116. Rd6 {[%clk 0:00:10]}  Kf7 {[%clk 0:00:05]} 117. Rd7+ {[%clk 0:00:10]}  Kf8 {[%clk 0:00:05]} 118. Rd6 {[%clk 0:00:07]}  Kf7 {[%clk 0:00:03]} 119. Rd7+ {[%clk 0:00:06]}  Kg8 {[%clk 0:00:04]} 1/2-1/2


[Site "https://www.chess.com"]